bitfinex/quotes_ETHUSD_20240922
["timestamp","ask_amount","ask_price","bid_price","bid_amount"]
[1726981510190,8.02586956,2601.2,2601.1,0.094485]
[1726981510597,7.62143976,2601.2,2601.1,0.094485]
[1726981511297,7.66094018,2601.2,2601.1,0.038485]
[1726981511891,9.26878018,2601.2,2601.1,0.038485]
[1726981512217,9.26877716,2601.2,2601.1,0.038485]
[1726981513941,12.26877716,2601.2,2601.1,0.038485]
[1726981514294,12.97544018,2601.2,2601.1,0.038485]
[1726981514440,14.98363178,2601.2,2601.1,0.038485]
[1726981514635,12.97544018,2601.2,2601.1,0.038485]
[1726981514831,14.98363528,2601.2,2601.1,0.038485]
[1726981515243,12.97544018,2601.2,2601.1,0.038485]
[1726981516245,11.35671435,2601.2,2601.1,0.038485]
[1726981516655,14.58101628,2601.2,2601.1,0.038485]
[1726981516949,15.28444018,2601.2,2601.1,1e-08]
[1726981517602,17.29087377,2601.2,2601.1,1e-08]
[1726981517915,12.97544018,2601.2,2601.1,1e-08]
[1726981518567,13.37390408,2601.2,2601.1,1e-08]
[1726981518795,13.37390408,2601.2,2600.4,0.038485]
[1726981518796,4.39541,2600.5,2600.4,0.038485]
[1726981519008,6.01413583,2600.5,2600.4,0.038485]
[1726981522722,9.70991,2600.5,2600.4,0.038485]
[1726981522929,11.32863583,2600.5,2600.4,0.038485]
[1726981523221,9.01413583,2600.5,2600.4,0.038485]
[1726981523375,11.29972641,2600.5,2600.4,0.038485]
[1726981527321,9.68100058,2600.5,2600.4,0.038485]
[1726981527979,11.29972641,2600.5,2600.4,0.038485]
[1726981532248,11.19684701,2600.5,2600.4,0.038485]
[1726981535761,13.68334701,2600.5,2600.4,0.038485]
[1726981537932,15.99234701,2600.5,2600.4,0.038485]
[1726981539953,16.39307656,2600.5,2600.4,0.038485]
[1726981540161,20.44207656,2600.5,2600.4,0.038485]
[1726981541252,20.44207656,2600.5,2599.6,0.038485]
[1726981541253,6.01531583,2599.7,2599.6,0.038485]
[1726981541465,9.01531583,2599.7,2599.6,0.038485]
[1726981542140,13.81081583,2599.7,2599.6,0.038485]
[1726981543010,7.39674,2599.6,2599.5,0.0014]
[1726981543210,9.54714058,2599.6,2599.5,0.0210126]
[1726981543950,9.54714058,2599.6,2599.5,0.0014]
[1726981544155,7.39674,2599.6,2599.5,0.0210126]
[1726981548182,9.70574,2599.6,2599.5,0.0210126]
[1726981551150,7.39674,2599.6,2599.5,0.0210126]
[1726981551987,9.70574,2599.6,2599.5,0.0210126]
[1726981552147,12.13524,2599.6,2599.5,0.0210126]
[1726981552333,14.27994058,2599.6,2599.5,0.0210126]
[1726981553952,15.88071192,2599.6,2599.5,0.0210126]
[1726981554261,14.27994058,2599.6,2599.5,0.0210126]
[1726981554654,16.28743449,2599.6,2599.5,0.0210126]
[1726981556761,14.27994058,2599.6,2599.5,0.0210126]
[1726981556967,15.88607467,2599.6,2599.5,0.0210126]
[1726981557281,12.7663005,2599.6,2599.5,0.0210126]
[1726981557479,11.16016641,2599.6,2599.5,0.0210126]
[1726981557709,11.16016641,2599.6,2597.2,0.42661851]
[1726981557710,2.4295,2598.7,2597.2,0.42661851]
[1726981557990,1.61872583,2598.1,2597.7,3.8495]
[1726981558135,1.61872583,2598.1,2597.2,0.0438182]
[1726981558136,3.84921,2598.0,2597.3,3.85005]
[1726981558335,3.84921,2598.0,2597.4,3.84999]
[1726981558540,3.84921,2598.0,2597.3,7.70005]
[1726981558862,3.84921,2598.0,2597.3,3.85001]
[1726981559029,3.8489,2598.2,2597.2,0.0438182]
[1726981559030,1.61872583,2597.7,2597.2,0.0438182]
[1726981559175,3.8489,2598.2,2597.2,1.66254403]
[1726981559176,4.3989,2598.2,2597.2,1.66254403]
[1726981559378,4.3989,2598.2,2597.5,3.84976]
[1726981559678,4.3989,2598.2,2597.5,3.84975]
[1726981560319,8.24783,2598.2,2597.5,3.84975]
[1726981560616,3.849,2598.1,2597.4,3.84999]
[1726981560823,3.849,2598.1,2597.5,3.84984]
[1726981561130,3.84913,2598.0,2597.3,7.70009]
[1726981561408,3.84913,2598.0,2597.3,7.70006]
[1726981561619,3.84913,2598.0,2597.4,3.84997]
[1726981562128,7.93529132,2598.2,2597.5,3.84975]
[1726981562129,4.3989,2598.2,2597.5,3.84975]
[1726981562621,8.24784,2598.2,2597.5,7.6995]
[1726981563326,4.973744,2598.1,2597.5,3.84975]
[1726981563522,3.84913,2598.0,2597.5,3.84975]
[1726981566629,4.3989,2598.2,2597.5,3.84975]
[1726981566834,4.3989,2598.2,2597.6,3.8497]
[1726981567050,3.84931,2597.9,2597.4,3.84996]
[1726981567735,3.84931,2597.9,2597.2,3.8940582]
[1726981567736,4.619138,2597.9,2597.2,3.8939982]
[1726981567938,3.84949,2597.8,2597.2,3.8939982]
[1726981568103,3.84956,2597.7,2597.2,0.0438182]
[1726981569494,3.84995,2597.5,2597.2,0.0438182]
[1726981569919,3.85001,2597.4,2597.2,0.0438182]
[1726981570191,4.290011,2597.4,2597.2,0.0438182]
[1726981570717,6.82965,2597.3,2597.2,0.0438182]
[1726981570888,7.40015,2597.3,2597.2,0.0438182]
[1726981577234,3.84974,2597.6,2597.2,0.0438182]
[1726981577446,3.84995,2597.5,2597.2,0.0438182]
[1726981577686,3.84974,2597.6,2597.2,0.0438182]
[1726981578215,3.84995,2597.5,2597.2,0.0438182]
[1726981578369,4.81507313,2597.6,2597.2,0.0438182]
[1726981579578,7.38580132,2597.8,2597.2,3.8940982]
[1726981579923,3.769828,2597.9,2597.4,3.84997]
[1726981579924,3.0,2597.9,2597.4,3.84997]
[1726981580530,3.84941,2597.8,2597.2,3.8939982]
[1726981580673,3.0,2597.9,2597.3,3.85005]
[1726981580872,6.84926,2597.9,2597.3,3.85005]
[1726981581072,0.55,2597.8,2597.2,3.8939982]
[1726981581729,0.55,2597.8,2597.3,3.85013]
[1726981582220,0.55,2597.8,2597.2,0.0438182]
[1726981582221,4.39947,2597.8,2597.2,3.8940982]
[1726981586028,4.39947,2597.8,2597.3,3.85013]
[1726981586530,0.55,2597.8,2597.3,3.85013]
[1726981587091,0.55,2597.9,2597.4,3.84989]
[1726981588295,7.43,2598.0,2597.6,3.84967]
[1726981588824,7.43,2598.0,2597.5,3.84983]
[1726981590337,2.2672,2598.1,2597.6,3.8497]
[1726981590519,2.2672,2598.1,2597.6,3.9597]
[1726981591038,6.1162,2598.1,2597.6,3.9597]
[1726981591600,3.84911,2598.0,2597.6,0.11]
[1726981591951,7.69833,2598.0,2597.6,0.11]
[1726981592148,3.84911,2598.0,2597.6,0.11]
[1726981592329,7.69836,2598.0,2597.6,0.11]
[1726981592640,3.84911,2598.0,2597.6,0.11]
[1726981592796,4.91403093,2598.0,2597.6,0.11]
[1726981592997,7.22303093,2598.0,2597.6,0.11]
[1726981593197,4.91403093,2598.0,2597.6,0.11]
[1726981593398,8.76325093,2598.0,2597.6,0.11]
[1726981593632,8.76324093,2598.0,2597.6,0.11]
[1726981594028,0.55,2597.8,2597.6,0.11]
[1726981595306,2.3926,2597.7,2597.6,0.11]
[1726981597983,4.39941,2597.8,2597.6,0.11]
[1726981598286,0.55,2597.8,2597.6,0.11]
[1726981598788,3.84907,2598.1,2597.6,0.11]
[1726981598945,3.84905,2598.1,2597.6,0.11]
[1726981599151,5.21879347,2598.1,2597.6,0.11]
[1726981599593,10.67364429,2598.1,2597.6,0.11]
[1726981599894,10.67359429,2598.1,2597.6,0.11]
[1726981600063,10.67358429,2598.1,2597.6,0.11]
[1726981600262,4.39921,2598.0,2597.6,0.11]
[1726981600587,1.12237543,2597.9,2597.6,0.11]
[1726981600802,4.39921,2598.0,2597.6,0.11]
[1726981601594,4.39921,2598.0,2596.4,3.85135]
[1726981601595,3.8505,2597.1,2596.4,3.85135]
[1726981601793,5.309,2597.6,2596.8,0.0227694]
[1726981601794,0.55,2596.9,2596.8,0.0227694]
[1726981602969,4.40074,2596.9,2596.8,0.0227694]
[1726981603169,5.82713892,2596.9,2596.8,0.0227694]
[1726981603581,7.4360141,2596.9,2596.8,0.0227694]
[1726981605803,7.83895495,2596.9,2596.8,0.0227694]
[1726981607846,7.83895495,2596.9,2596.0,3.8928241]
[1726981607847,0.55,2596.7,2596.0,0.0408441]
[1726981608059,5.45971556,2596.2,2596.0,0.0408441]
[1726981608223,1.60785556,2596.2,2596.0,0.0408441]
[1726981608412,3.85176,2596.3,2596.0,0.0408441]
[1726981608911,3.85175,2596.3,2596.0,0.0408441]
[1726981609362,3.85173,2596.3,2596.0,0.0408441]
[1726981609665,3.85129,2596.6,2596.1,0.0236]
[1726981609826,0.55,2596.7,2596.1,3.87548]
[1726981610012,8.25223,2596.7,2596.1,3.87548]
[1726981610210,1.60785556,2596.8,2596.1,0.0236]
[1726981610482,1.60785556,2597.0,2596.5,3.85123]
[1726981610681,4.40077058,2597.2,2596.4,0.10061973]
[1726981610682,1.60785556,2597.1,2596.4,0.10061973]
[1726981610953,2.4098047,2597.5,2596.4,0.10061973]
[1726981610954,3.85009,2597.4,2596.8,0.0236]
[1726981611459,3.85009,2597.4,2596.8,3.8744]
[1726981611824,3.85,2597.4,2596.8,0.0236]
[1726981612214,3.85,2597.4,2596.8,3.87438]
[1726981612538,1.60785556,2597.5,2596.8,3.87438]
[1726981612713,4.60785556,2597.6,2597.0,3.85046]
[1726981612918,4.60785556,2597.6,2597.0,7.70095]
[1726981613109,8.45758556,2597.6,2597.0,3.85046]
[1726981613531,3.84986,2597.5,2596.8,3.87436]
[1726981615154,0.55,2597.6,2597.0,3.85047]
[1726981615459,4.3998,2597.6,2597.0,3.85047]
[1726981616317,4.39971,2597.6,2597.0,3.85047]
[1726981617121,4.39971,2597.6,2597.0,7.70097]
[1726981617322,4.39971,2597.6,2597.0,3.85047]
[1726981617633,3.84987,2597.5,2597.0,3.85047]
[1726981618013,7.69981,2597.5,2596.8,7.72518]
[1726981618243,3.84987,2597.5,2596.8,3.87436]
[1726981618449,3.84987,2597.5,2596.9,3.85066]
[1726981620044,2.15785556,2597.6,2597.1,3.85044]
[1726981620245,4.39971,2597.6,2597.0,7.70109]
[1726981620476,0.55,2597.6,2597.0,3.85051]
[1726981620680,0.55,2597.6,2597.1,3.85034]
[1726981620892,5.45746556,2597.7,2597.2,3.85029]
[1726981621250,9.30712556,2597.7,2597.0,7.70098]
[1726981621449,1.60785556,2597.7,2597.2,3.85027]
[1726981621674,7.71145556,2597.9,2597.4,3.84992]
[1726981621883,4.60785556,2598.0,2597.4,3.84991]
[1726981622381,3.84936,2597.9,2597.3,3.85005]
[1726981622796,3.84936,2597.9,2597.4,3.85]
[1726981624184,3.8496,2597.7,2597.2,3.8502]
[1726981624384,3.8496,2597.7,2597.1,3.87403]
[1726981624385,7.69925,2597.7,2597.1,3.87403]
[1726981624549,7.69927,2597.7,2597.1,3.87403]
[1726981624750,8.85541256,2597.7,2597.1,3.87403]
[1726981625161,5.00574256,2597.7,2597.1,3.87403]
[1726981625373,8.85540256,2597.7,2597.1,3.87403]
[1726981625579,3.84971,2597.6,2597.1,3.87403]
[1726981626581,5.00574256,2597.7,2597.1,3.87403]
[1726981626798,8.85540256,2597.7,2597.1,3.87403]
[1726981627152,8.55540256,2597.7,2597.1,3.87403]
[1726981627395,8.55542256,2597.7,2597.1,3.87403]
[1726981627904,4.70574256,2597.7,2597.1,7.72446]
[1726981628200,3.5496,2597.7,2597.1,7.72435]
[1726981628794,3.86215556,2597.8,2597.3,3.85006]
[1726981629097,7.43,2598.0,2597.6,3.87317]
[1726981629294,7.71097556,2598.2,2597.6,0.0236]
[1726981629295,3.86215556,2598.2,2597.6,0.0236]
[1726981629514,2.2543,2598.2,2597.6,0.0236]
[1726981629959,2.2543,2598.2,2597.8,3.84932]
[1726981630766,2.2543,2598.2,2597.6,7.72281]
[1726981631002,2.2543,2598.2,2597.7,3.84949]
[1726981631213,5.14424688,2598.4,2597.6,0.0236]
[1726981631214,1.60785556,2598.4,2597.6,0.0236]
[1726981631358,3.94725556,2598.7,2598.1,3.87246]
[1726981631558,2.3394,2598.7,2598.1,3.87246]
[1726981632522,3.85734869,2598.7,2598.1,3.87246]
[1726981632667,0.55,2598.6,2598.1,3.87246]
[1726981634058,0.55,2598.6,2598.3,3.84857]
[1726981634308,0.55,2598.8,2598.3,3.84857]
[1726981635559,0.55,2599.0,2598.4,0.0236]
[1726981635844,0.55,2599.0,2598.5,3.84827]
[1726981638342,0.55,2599.0,2598.4,0.0236]
[1726981638343,3.53639132,2598.9,2598.4,0.0236]
[1726981638526,3.84837,2598.5,2597.8,0.0236]
[1726981638733,0.55,2598.5,2597.8,0.10057555]
[1726981638968,0.55,2598.5,2598.1,3.84895]
[1726981639860,3.53639132,2598.6,2598.1,7.69782]
[1726981640248,3.53639132,2598.6,2598.2,3.8488]
[1726981640649,3.53639132,2598.6,2598.1,3.84887]
[1726981641716,7.38462132,2598.6,2598.1,3.84887]
[1726981641889,3.53639132,2598.6,2598.1,3.84887]
[1726981642477,0.55,2598.5,2597.9,3.84915]
[1726981642998,0.55,2598.5,2598.0,3.84911]
[1726981643495,0.55,2598.6,2598.1,3.84895]
[1726981647163,0.55,2598.6,2598.1,3.84888]
[1726981647705,0.55,2598.6,2597.8,0.0236]
[1726981647899,2.3394,2598.8,2598.4,3.84846]
[1726981648100,2.3394,2598.8,2598.5,3.84837]
[1726981648459,2.3394,2598.8,2598.4,3.84846]
[1726981649361,2.3394,2598.8,2598.4,7.69688]
[1726981649601,2.3394,2598.8,2598.4,3.84842]
[1726981650664,2.3394,2598.8,2598.2,3.8487]
[1726981651008,0.55,2598.7,2598.3,3.84865]
[1726981651160,2.3394,2598.8,2598.2,3.8487]
[1726981652755,2.3394,2598.8,2598.4,3.8485]
[1726981656497,2.3394,2598.8,2598.4,3.84842]
[1726981657341,2.3394,2598.8,2598.5,3.84836]
[1726981657551,2.3394,2598.8,2598.4,3.84842]
[1726981664355,2.3595366,2598.8,2598.4,3.84842]
[1726981666569,6.2075666,2598.8,2598.2,3.84872]
[1726981666773,2.3595366,2598.8,2598.2,3.84872]
[1726981667139,2.3595366,2598.8,2598.3,3.84858]
[1726981668791,3.84808,2598.7,2598.2,3.84872]
[1726981669085,3.84808,2598.7,2598.2,7.69745]
[1726981669788,2.3595366,2598.8,2598.3,3.84865]
[1726981670593,7.81536216,2598.8,2598.3,3.84865]
[1726981672502,1.60785556,2598.7,2598.3,3.84865]
[1726981673072,1.60785556,2598.7,2598.2,3.84872]
[1726981673275,2.3086,2598.5,2598.1,3.84892]
[1726981673479,2.3086,2598.5,2598.0,3.87266]
[1726981673860,7.76484556,2598.5,2598.0,3.87266]
[1726981674297,3.91645556,2598.5,2598.1,3.84895]
[1726981674586,1.60785556,2598.4,2598.1,3.84895]
[1726981675405,3.84927,2597.9,2597.4,3.84992]
[1726981675599,1.61256064,2597.9,2597.3,0.0236]
[1726981675809,1.61256064,2597.9,2597.6,3.84958]
[1726981676363,1.61256064,2597.9,2597.7,3.84954]
[1726981677662,3.92116064,2598.0,2597.7,3.84954]
[1726981677898,3.92116064,2598.0,2597.7,3.84947]
[1726981678061,1.61256064,2598.0,2597.7,3.84944]
[1726981679466,4.32425828,2598.2,2597.7,3.84944]
[1726981679467,1.61256064,2598.1,2597.8,3.84931]
[1726981679775,1.61256064,2598.2,2598.0,3.84902]
[1726981679977,2.3086,2598.5,2598.1,3.84888]
[1726981679978,1.61256064,2598.3,2598.1,3.84888]
[1726981680162,1.61256064,2598.4,2598.2,3.84881]
[1726981680362,3.92116064,2598.5,2598.2,3.84881]
[1726981680598,3.92116064,2598.5,2598.0,7.7216]
[1726981680766,1.61256064,2598.4,2598.1,3.84896]
[1726981681375,1.61256064,2598.4,2598.0,7.69796]
[1726981681578,4.32425828,2598.5,2598.0,3.84898]
[1726981681579,1.61256064,2598.3,2598.0,3.84898]
[1726981685772,1.61256064,2598.3,2597.8,3.87291]
[1726981686182,5.86301254,2598.4,2597.8,3.87291]
[1726981686183,1.61256064,2598.2,2597.8,3.87291]
[1726981686500,1.61256064,2598.3,2597.8,3.87291]
[1726981686664,1.61256064,2598.2,2597.8,3.87291]
[1726981686865,1.61256064,2598.2,2597.9,3.84924]
[1726981687062,1.61256064,2598.3,2597.9,3.84924]
[1726981687679,4.00556064,2598.2,2597.9,3.84924]
[1726981688804,4.00556064,2598.2,2597.8,3.84931]
[1726981689348,4.00556064,2598.2,2597.6,3.9501792]
[1726981689634,4.00556064,2598.2,2597.6,0.1005792]
[1726981689765,4.00556064,2598.2,2597.8,3.84933]
[1726981692509,2.393,2598.2,2597.8,3.84933]
[1726981695419,2.393,2598.2,2597.8,3.84932]
[1726981695941,2.393,2598.2,2597.9,3.84926]
[1726981696436,2.393,2598.2,2597.8,7.69864]
[1726981696593,2.393,2598.2,2597.8,3.84932]
[1726981699032,4.00556064,2598.2,2597.8,3.84932]
[1726981699234,2.393,2598.2,2597.8,3.84932]
[1726981699731,4.00556064,2598.2,2597.8,3.84932]
[1726981700112,2.393,2598.2,2597.8,3.84932]
[1726981701912,4.00556064,2598.2,2597.8,3.84932]
[1726981704204,4.00556064,2598.2,2597.1,1.63182706]
[1726981704205,1.63182706,2598.0,2597.4,3.8499]
[1726981704409,1.63182706,2598.0,2597.3,3.8501]
[1726981704410,2.4336,2597.8,2597.3,3.8501]
[1726981704621,2.4336,2597.8,2597.4,3.84997]
[1726981705203,2.4336,2597.8,2597.4,7.69987]
[1726981705829,2.4336,2597.8,2597.4,3.8499]
[1726981706030,2.4336,2597.8,2597.5,3.84983]
[1726981706250,2.4336,2597.8,2597.4,3.8499]
[1726981706759,2.4336,2597.8,2597.6,3.84969]
[1726981706933,2.4336,2597.8,2597.6,3.84962]
[1726981707103,4.04616064,2598.0,2597.6,3.84962]
[1726981708236,4.04616064,2598.0,2597.4,7.69986]
[1726981708434,4.04616064,2598.0,2597.5,3.84981]
[1726981710352,7.89541064,2598.0,2597.5,3.84981]
[1726981710677,2.4336,2597.8,2597.5,3.84981]
[1726981712539,2.4336,2597.8,2597.5,3.84977]
[1726981712734,2.4336,2597.8,2597.5,7.69954]
[1726981714247,2.4336,2597.8,2597.5,3.84977]
[1726981714565,4.04616064,2597.8,2597.5,3.84977]
[1726981714780,2.4336,2597.8,2597.5,3.84977]
[1726981716070,2.4336,2597.8,2597.5,7.69954]
[1726981716368,2.4336,2597.8,2597.5,3.84977]
[1726981716569,2.4336,2597.8,2597.5,7.69954]
[1726981716772,2.4336,2597.8,2597.5,3.84977]
[1726981716988,2.4336,2597.8,2597.5,7.69954]
[1726981717197,2.4336,2597.8,2597.5,3.84977]
[1726981718493,4.04616064,2597.8,2597.5,3.84977]
[1726981718790,1.61256064,2597.9,2597.7,3.84953]
[1726981718950,4.29333443,2598.0,2597.5,3.84973]
[1726981718951,1.61256064,2598.0,2597.8,3.84933]
[1726981719149,1.61256064,2598.2,2598.0,3.84911]
[1726981719399,1.61256064,2598.2,2598.1,3.84896]
[1726981720594,2.01578946,2598.4,2597.9,0.10057277]
[1726981720595,1.61256064,2598.4,2598.2,3.84881]
[1726981720799,2.01578946,2598.5,2598.2,3.84881]
[1726981720800,1.61256064,2598.5,2598.2,3.87241]
[1726981721013,1.61256064,2598.5,2598.3,3.84859]
[1726981722065,1.61256064,2598.5,2598.4,3.84852]
[1726981722266,1.61256064,2598.5,2598.3,3.84863]
[1726981722691,1.61256064,2598.5,2598.2,3.8723]
[1726981722914,1.61256064,2598.5,2598.3,3.84864]
[1726981723212,1.61256064,2598.6,2598.4,3.84852]
[1726981725368,1.61256064,2598.7,2598.4,3.84852]
[1726981725610,1.61256064,2598.6,2598.4,3.84852]
[1726981726397,1.61256064,2598.7,2598.4,3.84852]
[1726981726570,1.61256064,2598.7,2598.5,3.84835]
[1726981726909,1.61256064,2598.7,2598.6,3.84822]
[1726981727080,0.0201366,2598.8,2598.7,3.84807]
[1726981727285,0.0201366,2598.8,2598.7,8.47989706]
[1726981727607,0.0201366,2598.8,2598.7,8.50349706]
[1726981728739,0.0201366,2598.8,2598.7,6.87167]
[1726981732801,0.0201366,2598.8,2598.7,6.94861557]
[1726981733324,0.0201366,2598.8,2598.7,6.87167]
[1726981733931,0.0201366,2598.8,2598.7,6.94861558]
[1726981736023,0.0201366,2598.8,2598.7,6.94861555]
[1726981737201,0.0201366,2598.8,2598.7,6.87167]
[1726981737727,0.0201366,2598.8,2598.7,6.94860009]
[1726981741445,0.0201366,2598.8,2598.7,6.87167]
[1726981741949,0.0201366,2598.8,2598.7,6.94859512]
[1726981750373,2.3530366,2598.8,2598.7,3.84807]
[1726981751278,2.3530366,2598.8,2598.6,3.84813]
[1726981751482,2.3530366,2598.8,2598.5,3.84829]
[1726981751642,2.3530366,2598.8,2598.7,3.84807]
[1726981751977,2.3530366,2598.8,2598.2,3.84878]
[1726981752289,2.58834026,2598.8,2598.2,3.8487]
[1726981753878,2.58834026,2598.8,2598.3,0.07695807]
[1726981754184,2.3530366,2598.8,2598.3,0.07695807]
[1726981754370,2.3530366,2598.8,2598.2,3.8487]
[1726981756112,2.4026,2598.7,2598.2,0.07695808]
[1726981760870,2.4026,2598.7,2598.1,6.84895]
[1726981761201,2.4026,2598.7,2598.1,6.92591248]
[1726981761963,2.4026,2598.5,2597.9,3.0]
[1726981762164,2.4026,2598.5,2597.9,3.07696829]
[1726981762363,2.4026,2598.4,2597.9,3.07696829]
[1726981765599,3.84877,2598.3,2597.9,0.07696829]
[1726981765816,3.84877,2598.3,2597.6,3.53395964]
[1726981765817,2.4026,2598.2,2597.7,3.84953]
[1726981766688,6.49173,2598.2,2597.7,0.07697486]
[1726981766888,2.4026,2598.1,2597.5,11.22971]
[1726981767111,2.4026,2598.1,2597.6,3.84969]
[1726981768081,2.4026,2598.1,2597.5,3.84971]
[1726981768528,2.4026,2598.0,2597.5,3.84971]
[1726981772622,2.4473,2597.9,2597.3,3.85007]
[1726981774098,2.4473,2597.9,2597.3,7.70012]
[1726981774824,2.4473,2597.9,2597.3,3.85005]
[1726981776005,2.4473,2597.9,2597.3,7.70011]
[1726981776324,2.4473,2597.9,2597.2,3.85028]
[1726981776325,2.4473,2597.8,2597.2,3.85028]
[1726981776487,2.4473,2597.8,2597.3,3.85011]
[1726981777881,2.4473,2597.8,2597.3,7.70022]
[1726981778102,2.4473,2597.8,2597.3,3.85011]
[1726981778310,2.4473,2597.8,2597.3,7.70018]
[1726981778513,2.4473,2597.8,2597.3,3.85007]
[1726981778995,3.84938,2597.9,2597.2,3.0]
[1726981779194,3.84938,2597.9,2597.2,6.85028]
[1726981779195,2.4473,2597.8,2597.2,6.85028]
[1726981779399,3.84941,2597.8,2597.2,6.85028]
[1726981779617,2.4473,2597.7,2597.2,6.85028]
[1726981780092,2.4473,2597.7,2597.2,6.8502]
[1726981780737,2.4473,2597.7,2597.3,3.85013]
[1726981784760,2.4473,2597.7,2597.2,6.85026]
[1726981786327,2.4473,2597.7,2597.3,3.85014]
[1726981793925,2.4473,2597.7,2597.2,3.0]
[1726981794144,2.4473,2597.7,2597.2,6.8502]
[1726981795135,2.4473,2597.7,2597.3,3.85014]
[1726981796259,2.4473,2597.7,2597.2,6.85016]
[1726981796635,2.4473,2597.7,2597.3,3.85012]
[1726981797939,2.4473,2597.7,2597.2,3.0]
[1726981798570,2.4473,2597.7,2597.2,6.85025]
[1726981800690,2.4473,2597.7,2597.2,6.85029]
[1726981801192,2.4629,2597.5,2596.9,6.85061]
[1726981801363,2.4629,2597.4,2596.9,6.85061]
[1726981801692,2.4629,2597.2,2596.7,3.85094]
[1726981802052,2.4629,2597.2,2596.7,7.7019]
[1726981802399,2.4629,2597.2,2596.7,3.85094]
[1726981803495,2.4629,2597.2,2596.7,7.70189]
[1726981803690,2.4629,2597.2,2596.7,3.85094]
[1726981804560,2.4629,2597.2,2596.7,7.7019]
[1726981804755,2.4629,2597.2,2596.8,3.85088]
[1726981804959,2.4629,2597.2,2597.1,3.85044]
[1726981806210,2.4629,2597.6,2597.2,3.85028]
[1726981809409,2.4629,2597.5,2596.4,0.0417896]
[1726981809620,2.4629,2597.5,2596.7,1.63211256]
[1726981809621,6.31283,2597.5,2596.7,1.63211256]
[1726981809824,6.31283,2597.5,2597.0,3.85058]
[1726981811321,2.4629,2597.5,2597.1,3.85036]
[1726981811621,2.4629,2597.5,2597.1,3.85043]
[1726981812828,2.4629,2597.5,2597.3,5.48226256]
[1726981812979,2.41440376,2598.0,2597.6,3.8497]
[1726981812980,2.3071,2597.7,2597.6,3.8497]
[1726981813186,2.3071,2597.7,2597.5,3.84985]
[1726981813187,3.91966064,2598.0,2597.5,3.84981]
[1726981813496,3.91966064,2598.0,2597.5,3.84977]
[1726981813913,3.91966064,2598.0,2597.5,7.69954]
[1726981814086,3.91966064,2598.0,2597.5,3.84976]
[1726981814847,2.3071,2597.8,2597.5,3.84976]
[1726981815025,2.3071,2597.8,2597.5,7.69953]
[1726981815197,2.3071,2597.8,2597.5,3.84976]
[1726981816692,2.3071,2598.0,2597.7,3.84946]
[1726981818440,2.3071,2598.0,2597.8,3.84938]
[1726981818845,2.3071,2598.2,2597.7,1.70909148]
[1726981819001,2.3071,2598.2,2598.0,3.84903]
[1726981819196,3.91966064,2598.5,2598.0,3.84903]
[1726981819400,2.3071,2598.5,2598.0,3.84903]
[1726981820952,2.3071,2598.5,2598.2,3.84873]
[1726981821545,2.3071,2598.5,2598.0,3.84898]
[1726981822045,2.3071,2598.5,2598.1,3.8489]
[1726981822367,2.3071,2598.5,2598.0,3.84909]
[1726981822642,6.15548,2598.5,2598.0,7.69806]
[1726981822845,6.15548,2598.5,2598.0,3.84903]
[1726981823407,6.15548,2598.5,2598.0,7.69805]
[1726981823617,6.15548,2598.5,2598.0,3.84902]
[1726981823819,6.15548,2598.5,2597.8,3.8493]
[1726981823820,2.3071,2598.3,2597.8,3.8493]
[1726981824236,2.3071,2598.3,2597.6,14.22963]
[1726981824237,2.3071,2598.2,2597.7,3.84953]
[1726981824655,2.3071,2598.2,2597.8,3.84928]
[1726981824817,2.3071,2598.2,2598.0,3.84908]
[1726981825019,2.3071,2598.2,2597.7,3.87315]
[1726981825222,2.3071,2598.2,2597.9,3.84917]
[1726981825555,2.3071,2598.2,2597.7,3.84943]
[1726981826365,2.3071,2598.2,2597.8,3.84938]
[1726981827771,2.3071,2598.2,2597.7,7.6989]
[1726981828127,2.3071,2598.2,2597.8,3.8494]
[1726981828346,2.3071,2598.2,2597.7,7.6989]
[1726981828875,2.3071,2598.2,2597.8,3.84939]
[1726981829868,2.3071,2598.2,2597.7,7.69889]
[1726981830268,2.3071,2598.2,2597.8,3.84939]
[1726981833066,2.3071,2598.2,2597.7,7.69889]
[1726981833270,2.3913,2598.2,2597.7,7.6989]
[1726981833767,2.3913,2598.2,2597.8,3.8494]
[1726981833974,2.3913,2598.2,2597.7,3.84943]
[1726981835436,3.84891,2598.2,2597.7,3.84943]
[1726981835637,3.84891,2598.2,2597.6,3.0]
[1726981835638,2.3913,2598.1,2597.6,6.84959]
[1726981837438,2.3913,2598.1,2597.7,3.84954]
[1726981837663,6.24035,2598.1,2597.4,3.0]
[1726981837867,6.24035,2598.1,2597.5,3.84976]
[1726981838037,3.84917,2598.0,2597.5,3.84976]
[1726981838238,6.24035,2598.1,2597.5,3.84976]
[1726981838633,6.24035,2598.1,2597.6,3.84969]
[1726981839651,6.24035,2598.1,2597.5,7.69953]
[1726981840185,2.3913,2598.0,2597.4,3.84998]
[1726981840361,2.3913,2597.8,2597.4,3.84998]
[1726981840734,2.3913,2597.8,2597.5,3.84985]
[1726981841360,2.3913,2597.8,2597.1,9.03553959]
[1726981841361,3.84973,2597.6,2597.1,11.23034]
[1726981841567,2.293,2597.4,2597.1,7.38]
[1726981841808,3.8501,2597.4,2596.7,3.85089]
[1726981841966,2.293,2597.3,2596.8,3.8508]
[1726981842492,2.293,2597.3,2596.9,3.85072]
[1726981842852,2.293,2597.3,2596.9,3.85065]
[1726981843052,2.293,2597.3,2597.0,3.85047]
[1726981844207,2.293,2597.3,2596.9,3.85065]
[1726981844558,2.293,2597.3,2596.9,7.7013]
[1726981845257,2.293,2597.3,2596.9,3.85065]
[1726981845480,2.293,2597.3,2596.9,7.70131]
[1726981845798,2.293,2597.3,2596.9,3.85065]